Cogmind - Beta 11.1 @@@ ROGUE MODE // 2022.05.06 @ 00:14:04 Player: IceNine Result: Destroyed by L-31 Rogue with Katana Performance ------------- Evolutions (1) 500 Regions Visited (2) 400 Robots Destroyed (51) 255 Value Destroyed (1017) 1017 Prototype IDs (3) 60 Alien Tech Used (0) 0 Bonus (0) 0 TOTAL SCORE: 2232 Bonus ------- None Cogmind --------- Core Integrity 0/400 Matter 280/300 Energy 65/100 System Corruption 0% Temperature Cool (6) Movement Core (450) Ox8 Location -9/Materials Parts ------- > --- POWER (1) -------- (None) > --- PROPULSION (2) --- (None) > --- UTILITY (3) ------ Large Storage Unit Visual Processing Unit > --- WEAPON (3) ------- Pulse Rifle Heavy Assault Rifle > --- INVENTORY (15) --- Cooled Ion Engine Light Nuclear Core Light Treads Cooling System Medium Matter Pod (100) Advanced Weight Redist. System Structural Scanner Signal Interpreter Medium Armor Plating Pulse Rifle Heavy Particle Gun Heavy Particle Gun Heavy Hammer Peak State ------------ > --- POWER ------------ Light Nuclear Core > --- PROPULSION ------- Improved Treads Improved Treads > --- UTILITY ---------- Large Storage Unit Advanced Weight Redist. System Visual Processing Unit > --- WEAPON ----------- Heavy Particle Gun Advanced Beam Cannon Shotgun > --- INVENTORY -------- Cooled Ion Engine Cooled Ion Engine Cooled Ion Engine Light Treads Light Treads Medium Matter Pod Structural Scanner Signal Interpreter Medium Armor Plating Pulse Rifle Pulse Rifle Heavy Particle Gun Heavy Particle Gun Heavy Assault Rifle [Rating: 25] Favorites ----------- Power Ion Engine Engine Ion Engine Power Core Light Nuclear Core Propulsion Improved Treads Treads Improved Treads Leg Aluminum Leg Utility Medium Storage Unit Device Sensor Array Storage Medium Storage Unit Processor Visual Processing Unit Weapon Small Laser Energy Gun Small Laser Energy Cannon Advanced Beam Cannon Ballistic Gun Light Assault Rifle Special Weapon Welding Torch Build | -11 -10 -9 ------- Run | Scr Mat Mat Slots Evolved 2 | . . 2 Power . | . . . Propulsion . | . . . Utility 1 | . . 1 Weapon 1 | . . 1 Parts Attached 38 | 6 11 21 Power 5 | 1 2 2 Engine 3 | 1 1 1 Core 2 | . 1 1 Reactor . | . . . Propulsion 7 | 2 2 3 Treads 3 | . . 3 Leg 4 | 2 2 . Wheel . | . . . Hover . | . . . Flight . | . . . Utility 12 | 1 3 8 Device 8 | . 2 6 Storage 3 | 1 1 1 Processor 1 | . . 1 Hackware . | . . . Protection . | . . . Artifact . | . . . Weapon 14 | 2 4 8 Energy Gun 9 | 2 2 5 Energy Cannon 1 | . . 1 Ballistic Gun 3 | . 1 2 Ballistic Cannon . | . . . Launcher . | . . . Special Weapon 1 | . 1 . Impact Weapon . | . . . Slashing Weapon . | . . . Piercing Weapon . | . . . Special Melee Weapon . | . . . Unidentified Prototypes 3 | . . 3 Parts Lost 9 | . . 9 Power 1 | . . 1 Propulsion 3 | . . 3 Utility 1 | . . 1 Weapon 4 | . . 4 Highest Loss Streak 6 | . . 6 To Critical Strikes . | . . . Average Slot Usage (%) 98 | . 99 97 Engine 8 | . 11 5 Core 4 | . 2 5 Treads 11 | . . 19 Leg 12 | . 28 1 Device 11 | . 13 10 Storage 12 | . 14 10 Processor 6 | . . 11 Energy Gun 19 | . 15 22 Energy Cannon 2 | . . 4 Ballistic Gun 7 | . 10 4 Naked Turns . | . . . Heaviest Build 39 | 12 20 39 Greatest Support 55 | 20 20 55 Greatest Overweight (x) 9 | . . 9 Average Overweight (x) . | . . . Largest Inventory Capacity 15 | 8 10 15 Average Capacity 11 | 7 9 12 Most Carried 15 | 5 10 15 Average Carried 10 | 3 8 11 Final Capacity 15 | 8 10 15 Final Carried 13 | 4 9 13 Class Distribution -------------------- 53% | Skirmisher 44% | Mutant Dominant Class ---------------- Mutant | -10/Materials Skirmisher | -9/Materials Resources | -11 -10 -9 ----------- Run | Scr Mat Mat Matter Collected 713 | 95 318 300 Remotely 60 | . . 60 Salvage Created 2070 | . 673 1397 Parts 111 | . 38 73 Haulers Intercepted 1 | . . 1 Recyclers Shooed 9 | . 6 3 Parts Field Recycled . | . . . Retrieved Matter . | . . . Parts Self-Destructed . | . . . Prevented . | . . . Kills | -11 -10 -9 ------- Run | Scr Mat Mat Combat Hostiles Destroyed 25 | . 5 20 Melee 1 | . . 1 Guns 15 | . 5 10 Cannons 9 | . . 9 Classes Destroyed 8 | . 5 3 Worker 6 | . 3 3 Builder 2 | . 2 . Hauler 1 | . . 1 Recycler 12 | . 5 7 Watcher 5 | . 2 3 Swarmer 4 | . . 4 Grunt 17 | . 5 12 Sentry 4 | . . 4 Best Kill Streak 6 | . 5 6 Combat Bots Only 3 | . 3 3 Max Kills in Single Turn 2 | . 1 2 Gunslinging 1 | . . 1 Exploded . | . . . Melee 1 | . . 1 Uniques/NPCs Destroyed . | . . . Combat | -11 -10 -9 -------- Run | Scr Mat Mat Damage Taken 2154 | . 483 1671 Core 481 | . 59 422 Absorbed by Shields . | . . . Regen/Repaired (Parts) 92 | . 92 . Core Remaining (%) 88 | 100 76 . Volleys Fired 130 | . 56 74 Largest 3 | . 2 3 Hottest 166 | . 70 166 Shots Fired 313 | . 110 203 Gun 275 | . 108 167 Cannon 36 | . . 36 Launcher . | . . . Special 2 | . 2 . Kinetic 82 | . 53 29 Thermal 201 | . 57 144 Explosive . | . . . Electromagnetic 30 | . . 30 Robot Hit Streak 14 | . 7 14 Robot Miss Streak 5 | . 4 5 Penetration Max . | . . . Secondary Targets 3 | . 1 2 Max Gunslinging Chain 1 | . 1 1 Shots Hit Robots 171 | . 63 108 Core Hits 77 | . 30 47 Critical Kills . | . . . Critical Parts Destroyed . | . . . Critical Strikes 1 | . . 1 Burn 1 | . . 1 Melee Attacks . | . . . Impact . | . . . Slashing . | . . . Piercing . | . . . Sneak Attacks . | . . . Combat Hostiles . | . . . Follow-up Attacks . | . . . Damage Inflicted 2561 | . 630 1931 Guns 2032 | . 630 1402 Cannons 451 | . . 451 Explosions 56 | . . 56 Melee . | . . . Ramming 22 | . . 22 Kinetic 469 | . 233 236 Thermal 1821 | . 397 1424 Explosive . | . . . Electromagnetic 249 | . . 249 Impact . | . . . Slashing . | . . . Piercing . | . . . Highest Corruption . | . . . Average Corruption . | . . . Corruption Purged . | . . . Corruption Blocked . | . . . Overload Shots . | . . . Overflow Damage 1 | . . 1 Projectiles 1 | . . 1 Explosions . | . . . Melee . | . . . Knockbacks . | . . . Impact . | . . . Kinetic . | . . . Secondary . | . . . Self-Inflicted Damage 13 | . . 13 Shots 1 | . . 1 Rammed 9 | . . 9 Targets Rammed 10 | . . 10 Kicked . | . . . Crushed 1 | . . 1 Highest Temperature 428 | . 196 428 Average Temperature 106 | . 81 117 Received Heat Transfer 888 | . 288 600 Effects 2 | . . 2 Interference 2 | . . 2 Siege Activations . | . . . Robots Corrupted . | . . . Combat Hostiles . | . . . Parts Fried 1 | . . 1 Impact Corruptions . | . . . Robots Melted . | . . . Combat Hostiles . | . . . Parts Melted 7 | . 2 5 Heat Transferred 3912 | . 912 3000 Parts Sabotaged . | . . . Parts Stolen . | . . . Parts Stripped . | . . . Power Chain Reactions 1 | . . 1 Missiles Intercepted . | . . . Alert | -11 -10 -9 ------- Run | Scr Mat Mat Peak Influence 392 | . 152 392 Initial 1 | . . 1 Average 118 | . 61 162 Maximum Alert Level 1 | . . 1 Low Security (%) 77 | 100 100 61 Level 1 22 | . . 38 Level 2 . | . . . Level 3 . | . . . Level 4 . | . . . Level 5 . | . . . High Security . | . . . Max Security . | . . . Squads Dispatched 4 | . 1 3 Investigation 2 | . 1 1 Extermination . | . . . Reinforcement 2 | . . 2 Assault . | . . . Garrison . | . . . Intercept . | . . . Searches Triggered . | . . . Construction Impeded . | . . . Haulers Reinforced . | . . . Active Scanning Responses . | . . . Cargo Convoy Interrupts . | . . . Stealth | -11 -10 -9 --------- Run | Scr Mat Mat Distress Signals 3 | . 1 2 Communications Jammed . | . . . Distress Signals . | . . . Times Spotted 46 | . 10 36 Peak Tracking Total 6 | . 3 6 Tactical Retreats 3 | . . 3 Traps | -11 -10 -9 ------- Run | Scr Mat Mat Traps Triggered 2 | . 1 1 Indirectly . | . . . Trap Hack Attempts . | . . . Triggered . | . . . Disarmed . | . . . Reprogrammed . | . . . Reused . | . . . Traps Extracted . | . . . Installed . | . . . Triggered . | . . . Machines | -11 -10 -9 ---------- Run | Scr Mat Mat Machines Disabled 1 | . . 1 Max in Single Turn 1 | . . 1 Machines Sabotaged . | . . . Garrisons Compromised . | . . . Overloaded Fab Kills . | . . . Hacking | -11 -10 -9 --------- Run | Scr Mat Mat Machines Accessed 4 | . 1 3 Terminals 3 | . . 3 Fabricators . | . . . Repair Stations 1 | . 1 . Recycling Units . | . . . Scanalyzers . | . . . Garrison Access . | . . . Total Hacks 13 | . 7 6 Successful 8 | . 6 2 Failed 5 | . 1 4 Catastrophic 1 | . . 1 Database Lockouts . | . . . Manual . | . . . Terminals 6 | . . 6 Fabricators . | . . . Repair Stations 7 | . 7 . Recycling Units . | . . . Scanalyzers . | . . . Garrison Access . | . . . Terminal Hacks 2 | . . 2 Branch Access Points 1 | . . 1 Emergency Access Points 1 | . . 1 Fabricator Hacks . | . . . Repair Station Hacks 6 | . 6 . Scan Component 3 | . 3 . Repair 3 | . 3 . Recycling Unit Hacks . | . . . Scanalyzer . | . . . Garrison Access Hacks . | . . . Unauthorized Hacks . | . . . Terminals . | . . . Fabricators . | . . . Repair Stations . | . . . Recycling Units . | . . . Scanalyzers . | . . . Garrison Access . | . . . Data Cores Recovered . | . . . Used . | . . . Hacking Detections 4 | . 1 3 Full Trace Events . | . . . Feedback Events . | . . . Feedback Blocked . | . . . Robot Schematics Acquired . | . . . Robots Built . | . . . Authchips . | . . . Time . | . . . Total Robot Build Rating . | . . . Part Schematics Acquired . | . . . Parts Built . | . . . Authchips . | . . . Time . | . . . Total Part Build Rating . | . . . Parts Repaired 3 | . 3 . Time 90 | . 90 . Parts Recycled . | . . . Recycled Matter . | . . . Retrieved Matter . | . . . Retrieved Components . | . . . Parts Scanalyzed . | . . . Part Schematics Acquired . | . . . Parts Damaged . | . . . Bothacking | -11 -10 -9 ------------ Run | Scr Mat Mat Used RIF Installer . | . . . Robots Hacked . | . . . Non-combat . | . . . Combat . | . . . Robot Hacks Applied . | . . . Relay Couplers Released . | . . . Fabnet Peak Effective % . | . . . Robots Rewired . | . . . Allies Hacked . | . . . Hacks Repelled . | . . . Allies | -11 -10 -9 -------- Run | Scr Mat Mat Total Allies . | . . . Largest Group . | . . . Highest-Rated Group . | . . . Highest-Rated Ally . | . . . Total Orders . | . . . Ally Attacks . | . . . Total Damage . | . . . Kills . | . . . Allies Corrupted . | . . . Allies Melted . | . . . Intel | -11 -10 -9 ------- Run | Scr Mat Mat Robot Analysis Total . | . . . Derelict Logs Recovered . | . . . Drone Launches . | . . . Drone Recoveries . | . . . Exploration | -11 -10 -9 ------------- Run | Scr Mat Mat Turns Passed 2616 | 67 1019 1530 Spaces Moved 1390 | 56 636 698 Core 25 | 22 . 3 Treads 649 | . . 649 Legs 716 | 34 636 46 Wheels . | . . . Hover . | . . . Flight . | . . . Fastest Speed 50 | 50 120 160 Average Speed 141 | 92 120 165 Slowest Speed 500 | 120 120 500 Overloaded Moves . | . . . Propulsion Burnouts . | . . . Robots Hopped . | . . . Cave-ins Triggered . | . . . Exploration Rate (%) 35 | 3 58 45 Regions Visited 2 Branch Regions . Pre-discovered Areas . | . . . Known Exits Taken . | . . . Unknown Exits Taken 2 | 1 1 . Scrap Searched . | . . . Spaces Dug . | . . . Terrain Destroyed . | . . . Melee . | . . . Projectile . | . . . AOE . | . . . Terrain Rammed . | . . . Walls Destroyed . | . . . Machines Disabled . | . . . Actions | -11 -10 -9 --------- Run | Scr Mat Mat Total 1781 | 71 794 916 Wait 108 | . 56 52 Move 1388 | 55 635 698 Hop . | . . . Pick Up 69 | 10 21 38 Fast Attach . | . . . Attach 20 | 6 3 11 Detach . | . . . Swap 19 | . 8 11 Drop 34 | . 12 22 Fire 130 | . 56 74 Melee . | . . . Ram . | . . . Kick . | . . . Crush 10 | . . 10 Escape Stasis . | . . . Rewire 3 | . 3 . Trap . | . . . Miscellaneous . | . . . Route ------- -11/Scrapyard -10/Materials (discovered 3 exits: *Mat x2 / [*Min]) -9/Materials (discovered 3 exits: [*Mat] / Min x2) History --------- Turn | Location | Event 13 | -11/Scrapyard | Discovered new exit (range 16) 68 | -11/Scrapyard | Entered Materials 182 | -10/Materials | Discovered new exit (range 11) 300 | -10/Materials | Build established: Mutant 376 | -10/Materials | Repaired Sensor Array 525 | -10/Materials | Discovered new exit (range 13) 654 | -10/Materials | Repaired Lgt. Nuclear Core 894 | -10/Materials | Discovered new exit (range 5) 1018 | -10/Materials | Repaired EM Pulse Gun 1087 | -10/Materials | Entered another Materials area 1087 | -9/Materials | Evolved 2 slots: Utility x1, Weapon x1 1103 | -9/Materials | Identified exit to Mines 1439 | -9/Materials | Build established: Skirmisher 2364 | -9/Materials | Discovered new exit (range 7) 2584 | -9/Materials | Core integrity fell below 50% 2614 | -9/Materials | Core integrity fell below 20% 2617 | -9/Materials | Destroyed by L-31 Rogue with Katana Last Messages --------------- 02553_ Imp. Treads destroyed. 02553_ K-01 Serf collects debris. 02557_ Overheating: System interference. 02557_ Sensor Array temporarily disabled. 02557_ Hvy. Particle Gun temporarily disabled. 02557_ Shotgun destroyed. 02557_ K-01 Serf collects debris. 02570_ Hvy. Particle Gun destroyed. 02574_ Sensor Array destroyed. 02590_ R-06 Scavenger collects Lgt. Treads. 02593_ R-06 Scavenger inserts Structural Scanner into recycling unit. 02594_ Recycling unit begins recycling process. 02596_ R-06 Scavenger inserts Lgt. Ion Engine into recycling unit. 02599_ R-06 Scavenger inserts Visual Processing Unit into recycling unit. 02600_ Recycling unit begins recycling process. 02602_ R-06 Scavenger inserts Ion Engine into recycling unit. 02602_ R-06 Scavenger collects Aluminum Leg. 02604_ Adv. Beam Cannon destroyed. 02604_ Lgt. Treads destroyed. 02608_ Cld. Ion Engine severed. Map ----- +----------------------------------------------------+ | ??????????????????????????????????? ??????? | | ??????????????????????????????????? #?????? | | ??????????????????????????????????? +?????? | | ??????????????????????????????????? #?????? | | ?????????????????????????????????? #?????? | | ??????????????????????????"??????? #?????? | | ?????????????????????????? ??????? #?????? | | ???????????????????????###+####### +?????? | | ??????????????????????## !![ #?????? | | ????????????###########" ![ #?????? | | ????????????# #T !k ""#?????? | | ??????#####?# #" Y"#?????? | | ####### # """ """ ## ""##????? | | # """ """ ## #????? | | %! + """ """ + #????? | | ! # ## /* #????? | | ####### # ## * #????? | | ??????## ?# ##g ! ##????? | | ???????# ?############ #?????? | | ???????# ?????????????# #?????? | | ???????+ ############# gr #?????? | | ?????? # g + ""??? | | ????? # g ########+# # | | ???? ?# *Y## #?????? | | ??? ?????###############l ## | #?????? | | ?? ]????????????????????#@r## #?????? | | ? ]??????????????????### ## """"" #?????? | | # ???????????????????# # """"" #?????? | | ??????????????????????# # """"" #?????? | | ??????????????????????# %[ + #?????? | | ??????????????????????# % # """"" #?????? | | ??????????????????????# k%# """"" #?????? | | ????????????????######## ## """"" #????#? | | ????????????????# T # ## #??? ? | | ##??????????????# # ### ######?? ?? | | ##??????????????#""" + #?###??????? ??? | | ##??????????????#""" # #?????????? ??? | | ##??????????????#""" # #????????## ???? | | ##??????????????# # %#####???? +????? | | ????????????????######## =[ #???? #????? | | ???????????????????????# < ##### #????? | | ???????????????????????# #????? | | ?????????????#################### #????? | | ############## """ """ #?######## #????? | | ############## """ """ #?# T # #????? | | ""T""" ### """ """ #?# # #????? | | [ ### #?# # #????? | | """ """" ### #?# """ + +????? | | """ """" !*### #?# """ # #????? | | """ =!### #?# """ # #????? | +----------------------------------------------------+ Best States ------------- Heat Dissipation 38 Energy Generation 14 Energy Capacity 280 Matter Stores 300 Matter Capacity 300 Sight Range 18 Robot Scan Range 14 Terrain Scan Range 14 Terrain Scan Density 10 Additional Mass Support 9 Evasion (%) 55 Recoil Reduction 2 Item Schematics ----------------- None Robot Schematics ------------------ None Fabricated ------------ Nothing Alien Tech Used ----------------- None Achievements -------------- None Challenges ------------ None Game ------ Seed DefenseFortressMachine Manual? 0 Play Time 00:32:14 Cumulative 5.2 hours Start 2022.05.05 @ 23:41:40 End 2022.05.06 @ 00:14:04 Sessions 1 Manual Loads 0 Difficulty Rogue Special Mode None Game No. 7 Rogue 7 Adventurer 0 Explorer 0 Win Type - Total 0 Types 0/0/0/0/0/0/0/0/0 Lore% 2 Gallery% 8 Achievement% 8 Wizard Run 0 Options --------- ASCII 0 Keyboard 0 Movement Numpad Keybinds 0 Fullscreen 1 Font 20/Terminus Map View 76x50 Tactical HUD 1 Map Filters NONE Filters NONE Steam 1 RUN: a64b2661-b082-4040-b1b5-52f440b9ff29